lending/lending_fUSD_20240509
["ID","MTS","AMOUNT","RATE_DAILY","PERIOD"]
[326686394,1715224257828,-500.99799765,0.00027397,4]
[326686395,1715224257838,-509.7815689,0.00027397,4]
[326686396,1715224257847,-500.0,0.00027397,4]
[326686397,1715224257856,-571.51,0.00027397,4]
[326686398,1715224257866,-500.0,0.00027397,4]
[326686399,1715224257876,-511.53189769,0.00027397,4]
[326686400,1715224257887,-500.0,0.00027397,4]
[326686401,1715224257896,-524.13205524,0.00027397,4]
[326686402,1715224257906,-514.6569936,0.00027397,4]
[326686403,1715224257915,-500.0,0.00027397,4]
[326686404,1715224257924,-556.55919092,0.00027397,4]
[326686405,1715224257935,-504.15781109,0.00027397,4]
[326686406,1715224257944,-514.26738798,0.00027397,4]
[326686407,1715224257954,-512.08221874,0.00027397,4]
[326686408,1715224257963,-520.70500056,0.00027397,4]
[326686409,1715224257977,-500.0,0.00027397,4]
[326686410,1715224257986,-513.3352111,0.00027397,4]
[326686411,1715224257996,-509.59382589,0.00027397,4]
[326686412,1715224258006,-718.77,0.00027397,4]
[326686413,1715224258026,-500.0,0.00027397,4]
[326686414,1715224258037,-538.51854532,0.00027397,4]
[326686415,1715224258047,-516.93131519,0.00027397,4]
[326686416,1715224258058,-509.01838807,0.00027397,4]
[326686417,1715224258068,-507.42316316,0.00027397,4]
[326686418,1715224258078,-510.81753424,0.00027397,4]
[326686419,1715224258088,-505.73314305,0.00027397,4]
[326686420,1715224258098,-370.14622871,0.00027397,4]
[326686421,1715224258108,-267.65767602,0.00027397,4]
[326686422,1715224258118,-517.78479351,0.00027397,4]
[326686423,1715224258130,-500.0,0.00027397,4]
[326686424,1715224258140,-306.60849574,0.00027397,4]
[326686425,1715224258151,-547.12,0.00027397,4]
[326686426,1715224258161,-536.32819505,0.00027397,4]
[326686427,1715224258172,-509.96903426,0.00027397,4]
[326686428,1715224258183,-169.9,0.00027397,4]
[326686429,1715224258194,-522.72830514,0.00027397,4]
[326686430,1715224258204,-500.0,0.00027397,4]
[326686431,1715224258214,-500.0,0.00027397,4]
[326686432,1715224258224,-514.19364951,0.00027397,4]
[326686433,1715224258234,-500.0,0.00027397,4]
[326686434,1715224258244,-700.36,0.00027397,4]
[326686435,1715224258267,-514.53501329,0.00027397,4]
[326686436,1715224258283,-558.10210428,0.00027397,4]
[326686437,1715224258298,-514.31865395,0.00027397,4]
[326686438,1715224258312,-718.43,0.00027397,4]
[326686439,1715224258326,-500.0,0.00027397,4]
[326686440,1715224258337,-306.15035815,0.00027397,4]
[326686441,1715224258352,-429.5086757,0.00027397,4]
[326686442,1715224258365,-508.91744169,0.00027397,4]
[326686443,1715224258378,-151.0,0.00027397,7]
[326686444,1715224258393,-522.42662759,0.00027397,4]
[326686445,1715224258408,-508.98980093,0.00027397,4]
[326686446,1715224258432,-500.0,0.00027397,4]
[326686447,1715224258447,-365.19114619,0.00027397,4]
[326686448,1715224258463,-500.0,0.00027397,4]
[326686449,1715224258477,-949.99,0.00027397,4]
[326686450,1715224258490,-500.0,0.00027397,4]
[326686451,1715224258503,-511.21466197,0.00027397,4]
[326686452,1715224258515,-513.73145447,0.00027397,4]
[326686453,1715224258529,-526.16669805,0.00027397,4]
[326686454,1715224258543,-500.0,0.00027397,4]
[326686455,1715224258556,-511.48140761,0.00027397,4]
[326686456,1715224258569,-564.66,0.00027397,4]
[326686457,1715224258581,-511.81270036,0.00027397,4]
[326686458,1715224258592,-524.78694425,0.00027397,4]
[326686459,1715224258604,-151.0,0.00027397,7]
[326686460,1715224258616,-500.0,0.00027397,4]
[326686461,1715224258629,-500.0,0.00027397,4]
[326686462,1715224258642,-550.21954731,0.00027397,4]
[326686463,1715224258656,-500.0,0.00027397,4]
[326686464,1715224258668,-500.0,0.00027397,4]
[326686465,1715224258682,-511.51393792,0.00027397,4]
[326686466,1715224258696,-510.78720038,0.00027397,4]
[326686467,1715224258711,-511.31703905,0.00027397,4]
[326686468,1715224258723,-500.0,0.00027397,4]
[326686469,1715224258735,-500.0,0.00027397,4]
[326686470,1715224258748,-517.51685394,0.00027397,4]
[326686471,1715224258760,-153.52491653,0.00027397,4]
[326686472,1715224258772,-500.0,0.00027397,4]
[326686473,1715224258785,-500.0,0.00027397,4]
[326686474,1715224258797,-156.61703894,0.00027397,4]
[326686475,1715224259165,-343.38296106,0.00027397,4]
[326686476,1715224259176,-735.04,0.00027397,4]
[326686477,1715224259188,-500.0,0.00027397,4]
[326686478,1715224259199,-500.0,0.00027397,4]
[326686479,1715224259211,-500.0,0.00027397,4]
[326686480,1715224259222,-500.0,0.00027397,4]
[326686481,1715224259234,-513.77965629,0.00027397,4]
[326686482,1715224259245,-697.29,0.00027397,4]
[326686483,1715224259257,-500.0,0.00027397,4]
[326686484,1715224259268,-652.29,0.00027397,4]
[326686485,1715224259280,-500.0,0.00027397,4]
[326686486,1715224259292,-500.0,0.00027397,4]
[326686487,1715224259306,-640.03,0.00027397,4]
[326686488,1715224259325,-401.72541046,0.00027397,4]
[326686489,1715224259335,-509.1920063,0.00027397,4]
[326686490,1715224259347,-549.86953843,0.00027397,4]
[326686491,1715224259358,-516.37325435,0.00027397,4]
[326686492,1715224259370,-512.65185919,0.00027397,4]
[326686493,1715224259381,-511.12160419,0.00027397,4]
[326686494,1715224259393,-500.0,0.00027397,4]
[326686495,1715224259404,-515.81003605,0.00027397,4]
[326686496,1715224259416,-7124.57,0.00027397,4]
[326686497,1715224259427,-500.0,0.00027397,4]
[326686498,1715224259438,-509.84000441,0.00027397,4]
[326686499,1715224259450,-1028.08,0.00027397,4]
[326686500,1715224259462,-500.0,0.00027397,4]
[326686501,1715224259473,-510.79584888,0.00027397,4]
[326686502,1715224259485,-3053.34,0.00027397,4]
[326686503,1715224259496,-500.0,0.00027397,4]
[326686504,1715224259507,-522.25,0.00027397,4]
[326686505,1715224259519,-999.31,0.00027397,4]
[326686506,1715224259530,-500.0,0.00027397,4]
[326686507,1715224259541,-500.0,0.00027397,4]
[326686508,1715224259554,-711.78,0.00027397,4]
[326686509,1715224259566,-76.87394601,0.00027397,4]
[326686510,1715224259581,-433.86061299,0.00027397,4]
[326686511,1715224259593,-707.78,0.00027397,4]
[326686512,1715224259605,-633.13,0.00027397,4]
[326686513,1715224259616,-616.79813856,0.00027397,4]
[326686514,1715224259628,-500.0,0.00027397,4]
[326686515,1715224259640,-730.6,0.00027397,4]
[326686516,1715224259652,-518.54,0.00027397,4]
[326686517,1715224259664,-500.0,0.00027397,4]
[326686518,1715224259675,-1639.67,0.00027397,4]
[326686519,1715224259684,-517.17036323,0.00027397,4]
[326686520,1715224259695,-500.0,0.00027397,4]
[326686521,1715224259704,-582.11,0.00027397,4]
[326686522,1715224259715,-500.0,0.00027397,4]
[326686523,1715224259725,-500.0,0.00027397,4]
[326686524,1715224259738,-500.0,0.00027397,4]
[326686525,1715224259748,-589.57557472,0.00027397,4]
[326686526,1715224259757,-1064.17,0.00027397,4]
[326686527,1715224259768,-783.96,0.00027397,4]
[326686528,1715224259778,-1177.09,0.00027397,4]
[326686529,1715224259788,-500.0,0.00027397,4]
[326686530,1715224259798,-500.0,0.00027397,4]
[326686531,1715224259809,-500.0,0.00027397,4]
[326686532,1715224259819,-500.0,0.00027397,4]
[326686533,1715224259829,-552.57,0.00027397,4]
[326686534,1715224259839,-500.0,0.00027397,4]
[326686535,1715224259849,-500.0,0.00027397,4]
[326686536,1715224259859,-4199.88,0.00027397,4]
[326686537,1715224259869,-622.18,0.00027397,4]
[326686538,1715224259879,-1571.9,0.00027397,4]
[326686539,1715224259893,-508.66468824,0.00027397,4]
[326686540,1715224259903,-500.0,0.00027397,4]
[326686541,1715224259914,-1420.81,0.00027397,4]
[326686542,1715224259923,-512.945767,0.00027397,4]
[326686543,1715224259935,-697.71,0.00027397,4]
[326686544,1715224259945,-500.0,0.00027397,4]
[326686545,1715224259956,-500.0,0.00027397,4]
[326686546,1715224259968,-500.0,0.00027397,4]
[326686547,1715224259979,-500.0,0.00027397,4]
[326686548,1715224259989,-709.79,0.00027397,4]
[326686549,1715224259999,-500.0,0.00027397,4]
[326686550,1715224260009,-508.53576651,0.00027397,4]
[326686551,1715224260019,-500.0,0.00027397,4]
[326686552,1715224260029,-508.27421161,0.00027397,4]
[326686553,1715224260313,-553.3,0.00027397,4]
[326686554,1715224260331,-508.30720983,0.00027397,4]
[326686555,1715224260346,-500.0,0.00027397,4]
[326686556,1715224260356,-500.0,0.00027397,4]
[326686557,1715224260367,-2445.27,0.00027397,4]
[326686558,1715224260377,-500.0,0.00027397,4]
[326686559,1715224260388,-500.0,0.00027397,4]
[326686560,1715224260398,-724.13,0.00027397,4]
[326686561,1715224260409,-995.77,0.00027397,4]
[326686562,1715224260454,-500.0,0.00027397,4]
[326686563,1715224260466,-2358.81,0.00027397,4]
[326686564,1715224260476,-500.0,0.00027397,4]
[326686565,1715224260487,-726.09,0.00027397,4]
[326686566,1715224260497,-500.0,0.00027397,4]
[326686567,1715224260507,-671.23,0.00027397,4]
[326686568,1715224260518,-500.0,0.00027397,4]
[326686569,1715224260528,-616.78,0.00027397,4]
[326686570,1715224260538,-1152.58,0.00027397,4]
[326686571,1715224260548,-500.0,0.00027397,4]
[326686572,1715224260559,-151.0,0.00027397,7]
[326686573,1715224260569,-592.22,0.00027397,4]
[326686574,1715224260579,-513.611883,0.00027397,4]
[326686575,1715224260589,-500.0,0.00027397,4]
[326686576,1715224260599,-510.90605262,0.00027397,4]
[326686577,1715224260608,-500.0,0.00027397,4]
[326686578,1715224260618,-500.0,0.00027397,4]
[326686579,1715224260628,-513.70191603,0.00027397,4]
[326686580,1715224260638,-516.08968345,0.00027397,4]
[326686581,1715224260648,-550.22617874,0.00027397,4]
[326686582,1715224260657,-500.0,0.00027397,4]
[326686583,1715224260667,-652.61,0.00027397,4]
[326686584,1715224260677,-515.0383535,0.00027397,4]
[326686585,1715224260688,-624.9009449,0.00027397,4]
[326686586,1715224260698,-500.0,0.00027397,4]
[326686587,1715224260707,-634.66,0.00027397,4]
[326686588,1715224260718,-500.0,0.00027397,4]
[326686589,1715224260728,-621.52,0.00027397,4]
[326686590,1715224260738,-1392.37,0.00027397,4]
[326686591,1715224260748,-913.16566084,0.00027397,4]
[326686592,1715224260762,-204.92433916,0.00027397,4]
[326686593,1715224260772,-1093.21,0.00027397,4]
[326686594,1715224260783,-511.41461688,0.00027397,4]
[326686595,1715224260793,-928.0,0.00027397,4]
[326686596,1715224260803,-527.41487747,0.00027397,4]
[326686597,1715224260812,-513.32882598,0.00027397,4]
[326686598,1715224260822,-573.89,0.00027397,4]
[326686599,1715224260832,-504.44289326,0.00027397,4]
[326686600,1715224260842,-1072.5,0.00027397,4]
[326686601,1715224260852,-512.94136226,0.00027397,4]
[326686602,1715224260863,-511.66128799,0.00027397,4]
[326686603,1715224260874,-519.23238846,0.00027397,4]
[326686604,1715224260885,-1437.23,0.00027397,4]
[326686605,1715224260898,-513.19025215,0.00027397,4]
[326686606,1715224260908,-500.0,0.00027397,4]
[326686607,1715224260919,-500.0,0.00027397,4]
[326686608,1715224260930,-500.0,0.00027397,4]
[326686609,1715224260941,-509.08562198,0.00027397,4]
[326686610,1715224260951,-511.03298314,0.00027397,4]
[326686611,1715224260960,-500.0,0.00027397,4]
[326686612,1715224260970,-1304.19,0.00027397,4]
[326686613,1715224260983,-1533.72,0.00027397,4]
[326686614,1715224260992,-500.0,0.00027397,4]
[326686615,1715224261002,-637.21,0.00027397,4]
[326686616,1715224261012,-725.23,0.00027397,4]
[326686617,1715224261022,-6217.87,0.00027397,4]
[326686618,1715224261039,-508.97806344,0.00027397,4]
[326686619,1715224261048,-659.12,0.00027397,4]
[326686620,1715224261061,-511.26944814,0.00027397,4]
[326686621,1715224261072,-516.15583636,0.00027397,4]
[326686622,1715224261082,-508.2361597,0.00027397,4]
[326686623,1715224261092,-524.7509632,0.00027397,4]
[326686624,1715224261102,-512.32687569,0.00027397,4]
[326686625,1715224261111,-672.68,0.00027397,4]
[326686626,1715224261122,-1127.0,0.00027397,4]
[326686627,1715224261133,-758.76,0.00027397,4]
[326686628,1715224261145,-509.93232248,0.00027397,4]
[326686629,1715224261156,-514.08285744,0.00027397,4]
[326686630,1715224261167,-500.0,0.00027397,4]
[326686631,1715224261177,-500.0,0.00027397,4]
[326686632,1715224261187,-508.14503956,0.00027397,4]
[326686633,1715224261200,-500.0,0.00027397,4]
[326686634,1715224261210,-660.76,0.00027397,4]
[326686635,1715224261220,-2189.95,0.00027397,4]
[326686636,1715224261230,-500.0,0.00027397,4]
[326686637,1715224261240,-512.79591332,0.00027397,4]
[326686638,1715224261250,-185.27979085,0.00027397,4]
[326686639,1715224261260,-500.0,0.00027397,4]
[326686640,1715224261271,-1154.57,0.00027397,4]
[326686641,1715224261281,-611.77277104,0.00027397,4]
[326686642,1715224261292,-500.0,0.00027397,4]
[326686643,1715224261303,-542.75,0.00027397,4]
[326686644,1715224261313,-500.0,0.00027397,4]
[326686645,1715224261324,-560.98,0.00027397,4]
[326686646,1715224261334,-500.0,0.00027397,4]
[326686647,1715224261344,-500.0,0.00027397,4]
[326686648,1715224261354,-500.0,0.00027397,4]
[326686649,1715224261365,-510.89916346,0.00027397,4]
[326686650,1715224261375,-15852.34,0.00027397,4]
[326686651,1715224261386,-500.0,0.00027397,4]
[326686652,1715224261397,-500.0,0.00027397,4]
[326686653,1715224261407,-686.67,0.00027397,4]
[326686654,1715224261418,-1037.97,0.00027397,4]
[326686655,1715224261429,-525.17353026,0.00027397,4]
[326686656,1715224261440,-509.24041139,0.00027397,4]
[326686657,1715224261450,-7298.78,0.00027397,4]
[326686658,1715224261460,-510.49305647,0.00027397,4]
[326686659,1715224261470,-529.30211884,0.00027397,4]
[326686660,1715224261480,-1218.48,0.00027397,4]
[326686661,1715224261490,-500.0,0.00027397,4]
[326686662,1715224261500,-509.12374475,0.00027397,4]
[326686663,1715224261511,-907.25,0.00027397,4]
[326686664,1715224261521,-4293.28,0.00027397,4]
[326686665,1715224261532,-1723.25,0.00027397,4]
[326686666,1715224261542,-500.0,0.00027397,4]
[326686667,1715224261553,-500.0,0.00027397,4]
[326686668,1715224261563,-516.02972822,0.00027397,4]
[326686669,1715224261573,-7967.91,0.00027397,4]
[326686670,1715224261584,-524.7657139,0.00027397,4]
[326686671,1715224261594,-2481.89,0.00027397,4]
[326686672,1715224261604,-500.0,0.00027397,4]
[326686673,1715224261614,-500.0,0.00027397,4]
[326686674,1715224261624,-514.50481993,0.00027397,4]
[326686675,1715224261634,-500.0,0.00027397,4]
[326686676,1715224261645,-1628.15,0.00027397,4]
[326686677,1715224261655,-500.0,0.00027397,4]
[326686678,1715224261665,-599.95,0.00027397,4]
[326686679,1715224261675,-514.53310723,0.00027397,4]
[326686680,1715224261686,-500.0,0.00027397,4]
[326686681,1715224261702,-997.67,0.00027397,4]
[326686682,1715224261712,-500.0,0.00027397,4]
[326686683,1715224261722,-508.78560214,0.00027397,4]
[326686684,1715224261732,-500.0,0.00027397,4]
[326686685,1715224261742,-1157.75,0.00027397,4]
[326686686,1715224261751,-1445.53,0.00027397,4]
[326686687,1715224261761,-889.02,0.00027397,4]
[326686688,1715224261772,-571.05760496,0.00027397,4]
[326686689,1715224261782,-511.19186001,0.00027397,4]
[326686690,1715224261793,-500.0,0.00027397,4]
[326686691,1715224261804,-743.09,0.00027397,4]
[326686692,1715224261813,-808.81,0.00027397,4]
[326686693,1715224261823,-503.46,0.00027397,4]
[326686694,1715224261833,-500.0,0.00027397,4]
[326686695,1715224261844,-500.0,0.00027397,4]
[326686696,1715224261853,-509.35396372,0.00027397,4]
[326686697,1715224261864,-579.15,0.00027397,4]
[326686698,1715224261874,-518.07555977,0.00027397,4]
[326686699,1715224261885,-2599.18,0.00027397,4]
[326686700,1715224261898,-503.82,0.00027397,4]
[326686701,1715224261910,-500.0,0.00027397,4]
[326686702,1715224261920,-514.71,0.00027397,4]
[326686703,1715224261931,-609.22,0.00027397,4]
[326686704,1715224261941,-759.2,0.00027397,4]
[326686705,1715224261952,-585.03458094,0.00027397,4]
[326686706,1715224261963,-500.0,0.00027397,4]
[326686707,1715224261977,-795.93,0.00027397,4]
[326686708,1715224261988,-500.0,0.00027397,4]
[326686709,1715224261998,-742.07,0.00027397,4]
[326686710,1715224262008,-500.0,0.00027397,4]
[326686711,1715224262020,-500.0,0.00027397,4]
[326686712,1715224262031,-1544.32,0.00027397,4]
[326686713,1715224262041,-1044.87,0.00027397,4]
[326686714,1715224262051,-500.0,0.00027397,4]
[326686715,1715224262060,-500.0,0.00027397,4]
[326686716,1715224262071,-959.55,0.00027397,4]
[326686717,1715224262081,-500.0,0.00027397,4]
[326686718,1715224262091,-513.3262409,0.00027397,4]
[326686719,1715224262102,-774.94,0.00027397,4]
[326686720,1715224262112,-692.75,0.00027397,4]
[326686721,1715224262122,-500.0,0.00027397,4]
[326686722,1715224262133,-500.0,0.00027397,4]
[326686723,1715224262142,-593.98506529,0.00027397,4]
[326686724,1715224262153,-1178.57,0.00027397,4]
[326686725,1715224262163,-500.43416902,0.00027397,2]
[326686726,1715224262174,-882.49,0.00027397,4]
[326686727,1715224262185,-791.07,0.00027397,4]
[326686728,1715224262197,-500.0,0.00027397,4]
[326686729,1715224262207,-773.64,0.00027397,4]
[326686730,1715224262218,-151.0,0.00027397,7]
[326686731,1715224262227,-1708.38,0.00027397,4]
[326686732,1715224262238,-701.1,0.00027397,4]
[326686733,1715224262248,-2090.21,0.00027397,4]
[326686734,1715224262259,-500.0,0.00027397,4]
[326686735,1715224262269,-2934.5,0.00027397,4]
[326686736,1715224262280,-630.66,0.00027397,4]
[326686737,1715224262290,-621.79,0.00027397,4]
[326686738,1715224262300,-500.0,0.00027397,4]
[326686739,1715224262310,-320.41851165,0.00027397,4]
[326686740,1715224262321,-500.0,0.00027397,4]
[326686741,1715224262331,-500.0,0.00027397,4]
[326686742,1715224262341,-500.0,0.00027397,4]
[326686743,1715224262351,-500.0,0.00027397,4]
[326686744,1715224262362,-150.0,0.00027397,2]
[326686745,1715224262372,-155.36406562,0.00027446,2]
[326686746,1715224262382,-200.0,0.00027518,7]
[326686747,1715224262393,-151.6200374,0.00027564,2]
[326686748,1715224262405,-151.6200374,0.0002783,2]
[326686749,1715224262415,-829.07,0.00027839,2]
[326686750,1715224262425,-829.07,0.00027839,2]
[326686751,1715224262435,-829.07,0.00027839,2]
[326686752,1715224262450,-829.07,0.00027839,2]
[326686753,1715224262461,-829.08388846,0.00027839,2]
[326686754,1715224262471,-172.39377149,0.0002784,2]
[326686755,1715224262482,-3100.76261187,0.0002784,2]
[326686756,1715224262492,-300.0,0.00027856,2]
[326686757,1715224262502,-150.85,0.00027856,2]
[326686758,1715224262513,-300.37,0.00027856,2]
[326686759,1715224262523,-151.58,0.00027856,2]
[326686760,1715224262533,-160.78,0.00027856,2]
[326686761,1715224262544,-4103.73818373,0.00027915,2]
[326686762,1715224262554,-2602.76758228,0.00027921,2]
[326686763,1715224262564,-155.0,0.00027938,2]
[326686764,1715224262575,-286.15625633,0.00027938,2]
[326686765,1715224262586,-297.78799564,0.00027938,2]
[326686766,1715224262596,-1223.67881279,0.00027938,2]
[326686767,1715224262607,-449.53723821,0.00027939,2]
[326686768,1715224262617,-155.32585035,0.00027939,2]
[326686769,1715224262627,-374.04317821,0.0002794,2]
[326686770,1715224262637,-4742.69802344,0.0002794,2]
[326686771,1715224262647,-34425.89513487,0.0002794,2]
[326686772,1715224262662,-1866.7651023,0.0002794,2]
[326686773,1715224262674,-3806.9034676,0.0002794,2]
[326686774,1715224262687,-410.15274604,0.0002794,2]
[326686793,1715225442956,-622.76168339,0.00017197,2]
[326686795,1715225442966,-93.83219724,0.00017198,2]
[326686797,1715225442977,-2657.0803135,0.00017198,2]
[326686799,1715225442989,-443.76632213,0.00017198,2]
[326686802,1715225443000,-1305.32116713,0.00017198,2]
[326686804,1715225443010,-455.03692704,0.000172,2]
[326686806,1715225443019,-166.27786527,0.00017879,2]
[326686808,1715225443029,-156.31,0.00019178,2]
[326686810,1715225443038,-174.08,0.00019178,2]
[326686812,1715225443047,-842.0,0.000194,3]
[326686814,1715225443057,-499.99,0.00019452,2]
[326686816,1715225443066,-284.29,0.00019452,2]
[326686818,1715225443075,-2516.69404056,0.00021832,2]
[326686832,1715225447694,-401.1233,0.00021832,2]
[326686842,1715225447705,-616.8,0.00021832,2]
[326686851,1715225447717,-75.91959399,0.00021832,2]
[326686856,1715225447726,-246.54438672,0.00021832,2]
[326686862,1715225447738,-55.43561328,0.00021832,2]
[326686866,1715225447747,-155.36406562,0.00022377,2]
[326686870,1715225447761,-157.92529717,0.00022607,2]
[326686874,1715225447770,-31.27502393,0.00022647,2]
[326686878,1715225447782,-128.93643601,0.00022647,2]
[326686882,1715225447792,-157.92529717,0.00022813,2]
[326686886,1715225447801,-152.77499495,0.00023231,2]
[326686890,1715225447810,-155.20712654,0.0002342,2]
[326686893,1715225447819,-150.0,0.00023687,7]
[326686896,1715225447829,-206.5,0.00023967,2]
[326686898,1715225447838,-155.0,0.00023999,2]
[326686900,1715225447848,-9988.78574383,0.00024,2]
[326686903,1715225447859,-500.0,0.00024,2]
[326686906,1715225447870,-499.21105787,0.00024,2]
[326686909,1715225447881,-8621.38338694,0.00024,2]
[326686912,1715225447890,-250.0,0.00024065,2]
[326686914,1715225447899,-301.84,0.00024164,2]
[326686916,1715225447908,-460.5,0.00024201,2]
[326686918,1715225447928,-250.0,0.00024289,2]
[326686919,1715225447938,-159.62,0.00024321,2]
[326686920,1715225447947,-150.0,0.0002435,7]
[326686921,1715225447957,-155.20712654,0.00024472,2]
[326686922,1715225447966,-150.0,0.00025013,7]
[326686923,1715225447976,-154.53007626,0.00025306,2]
[326686924,1715225447985,-157.92529717,0.00025521,2]
[326686925,1715225447994,-150.0,0.00025676,7]
[326686926,1715225448004,-155.36406562,0.00025864,2]
[326686927,1715225448014,-154.53007626,0.00026197,2]
[326686928,1715225448023,-180.0,0.00026787,2]
[326686929,1715225448032,-294.86126015,0.00027,2]
[326686930,1715225448042,-254.05511973,0.00027121,2]
[326686931,1715225448051,-2718.44665157,0.00027121,2]
[326686932,1715225448060,-155.36406562,0.00027135,2]
[326686933,1715225448069,-460.5,0.00027226,2]
[326686934,1715225448079,-200.77924495,0.00027296,2]
[326686935,1715225448088,-10000.0,0.00027297,2]
[326686936,1715225448098,-1000.0,0.00027297,2]
[326686937,1715225448107,-1211.7634,0.00027297,2]
[326686938,1715225448116,-784.4937,0.00027297,2]
[326686939,1715225448125,-43.59547179,0.00027297,2]
[326686940,1715225448137,-892.03217045,0.00027297,2]
[326686941,1715225448148,-644.1141212,0.00027297,2]
[326686942,1715225448266,-82.40893656,0.00027297,2]
[326686943,1715225448276,-246.06042719,0.00027297,2]
[326686944,1715225448287,-551.104525,0.00027297,2]
[326686945,1715225448299,-2612.02334781,0.00027297,2]
[326686946,1715225448308,-1000.0,0.00027297,2]
[326686947,1715225448317,-2500.0,0.00027297,2]
[326686948,1715225448326,-142.67665219,0.00027297,2]
[326686949,1715225448360,-8010.7178032,0.00027297,2]
[326686950,1715225448370,-429.1742933,0.00027297,2]
[326686952,1715226640328,-1211.37006214,0.00012958,2]
[326686956,1715226640340,-150.0,0.00012959,2]
[326686958,1715226640351,-152.7,0.0001299,2]
[326686959,1715226640362,-150.0,0.00012998,2]
[326686960,1715226640373,-1165.49261068,0.00012999,2]
[326686961,1715226640384,-2430.33165782,0.00012999,2]
[326686962,1715226640814,-308.22779836,0.00012999,2]
[326686963,1715226640827,-3189.83507936,0.00012999,2]
[326686966,1715226640845,-1592.358,0.00012999,2]
[326686968,1715226640859,-557.16671457,0.00012999,2]
[326686970,1715226640870,-155.63328543,0.00013,2]
[326686973,1715226640883,-2112.25674,0.00013,2]
[326686986,1715226641856,-1723.49402903,0.00013,2]
[326686987,1715226641871,-318.64482262,0.00013,2]
[326686988,1715226641883,-2000.0,0.00013,2]
[326686989,1715226641894,-3042.30000003,0.00013,2]
[326686992,1715226645526,-6302.66832,0.00013,2]
[326686994,1715226645537,-600.64448415,0.00013,2]
[326686997,1715226645550,-1007.92906456,0.00013,2]
[326686998,1715226645562,-450.43803974,0.00013,2]
[326686999,1715226645573,-453.17347087,0.00013,2]
[326687000,1715226645585,-377346.03510215,0.00013,2]
[326687001,1715226649540,-303.00000001,0.00013,2]
[326687005,1715226649553,-6330.9,0.00013,2]
[326687008,1715226649564,-630.0,0.00013,2]
[326687011,1715226649575,-10760.0,0.00013,2]
[326687014,1715226649589,-2551.32,0.00013,2]
[326687017,1715226649601,-342.46667533,0.00013,2]
[326687047,1715227836463,-1306.02044484,0.00012485,2]
[326687049,1715227836475,-30717.70322135,0.00012485,2]
[326687053,1715227836485,-522.78326127,0.00012585,2]
[326687057,1715227836494,-1017.57721897,0.00012586,2]
[326687060,1715227836505,-168.28397749,0.00012588,2]
[326687064,1715227836514,-168.28397747,0.0001264,2]
[326687067,1715227836524,-7507.68436185,0.00012691,2]
[326687071,1715227836534,-168.28397747,0.00012692,2]
[326687076,1715227836543,-1562.13781289,0.0001271,2]
[326687080,1715227836553,-3501.49195481,0.00012802,2]
[326687083,1715227836562,-150.0,0.00012899,2]
[326687086,1715227836571,-184.67580972,0.000129,2]
[326687088,1715227836581,-169.14327647,0.000129,2]
[326687089,1715227836590,-172.39377148,0.000129,2]
[326687090,1715227836599,-2948.41498285,0.000129,2]
[326687091,1715227836609,-173.57394589,0.000129,2]
[326687092,1715227836618,-196.42269685,0.000129,2]
[326687093,1715227836627,-1223.46588706,0.000129,2]
[326687094,1715227836637,-324.9576443,0.000129,2]
[326687095,1715227836646,-25244.27478505,0.0001299,2]
[326687096,1715227836656,-152.7,0.0001299,2]
[326687097,1715227836666,-165.01,0.0001299,2]
[326687098,1715227836676,-165.01,0.0001299,2]